Cogmind - Beta 12 X4 @@@ ROGUE MODE // 2022.12.21 @ 16:13:37 Player: Cracklepappy Result: Destroyed by G-34 Mercenary with Small Laser Performance ------------- Evolutions (0) 0 Regions Visited (1) 200 Robots Destroyed (17) 85 Value Destroyed (273) 273 Prototype IDs (2) 40 Alien Tech Used (0) 0 Bonus (0) 0 TOTAL SCORE: 598 Bonus ------- None Cogmind --------- Core Integrity 0/250 Matter 298/300 Energy 100/100 System Corruption 0% Temperature Cool (6) Movement Core (50) Location -10/Materials Parts ------- > --- POWER (1) -------- (None) > --- PROPULSION (2) --- (None) > --- UTILITY (2) ------ (None) > --- WEAPON (2) ------- (None) > --- INVENTORY (5) ---- Heat Sink Medium Storage Unit Medium Storage Unit Improved Terrain Scanner Datajack Peak State ------------ > --- POWER ------------ Light Ion Engine > --- PROPULSION ------- Light Treads Compact Wheel > --- UTILITY ---------- Small Storage Unit Seismic Detector > --- WEAPON ----------- Assault Rifle Light Assault Rifle > --- INVENTORY -------- Light Ion Engine Light Treads Wheel Improved Terrain Scanner Improved Terrain Scanner EM Pulse Gun Mining Laser [Rating: 8] Favorites ----------- Power Light Ion Engine Engine Light Ion Engine Propulsion Light Treads Treads Light Treads Leg Aluminum Leg Wheel Compact Wheel Utility Seismic Detector Device Seismic Detector Storage Huge Storage Unit Weapon Light Assault Rifle Ballistic Gun Light Assault Rifle Build | -11 -10 ------- Run | Scr Mat Slots Evolved . | . . Power . | . . Propulsion . | . . Utility . | . . Weapon . | . . Parts Attached 17 | 7 10 Power 2 | 1 1 Engine 2 | 1 1 Core . | . . Reactor . | . . Propulsion 10 | 2 8 Treads 3 | 1 2 Leg 2 | . 2 Wheel 5 | 1 4 Hover . | . . Flight . | . . Utility 3 | 2 1 Device 1 | 1 . Storage 2 | 1 1 Processor . | . . Hackware . | . . Protection . | . . Artifact . | . . Weapon 2 | 2 . Energy Gun . | . . Energy Cannon . | . . Ballistic Gun 2 | 2 . Ballistic Cannon . | . . Launcher . | . . Special Weapon . | . . Impact Weapon . | . . Slashing Weapon . | . . Piercing Weapon . | . . Special Melee Weapon . | . . Unidentified Prototypes . | . . Parts Lost 11 | . 11 Power 2 | . 2 Propulsion 6 | . 6 Utility 1 | . 1 Weapon 2 | . 2 Highest Loss Streak 10 | . 10 To Critical Strikes . | . . Average Slot Usage (%) 87 | . 87 Engine 12 | . 12 Treads 13 | . 13 Leg 1 | . 1 Wheel 11 | . 11 Device 11 | . 11 Storage 14 | . 14 Ballistic Gun 22 | . 22 Naked Turns 4 | . 4 Heaviest Build 87 | 12 87 Greatest Support 16 | 16 16 Greatest Overweight (x) 8 | . 8 Average Overweight (x) 3 | . 6 Largest Inventory Capacity 25 | 8 25 Average Capacity 19 | 7 24 Most Carried 16 | 8 16 Average Carried 11 | 6 14 Final Capacity 8 | 8 5 Final Carried 8 | 8 5 Class Distribution -------------------- 100% | Mutant Dominant Class ---------------- Mutant | -10/Materials Resources | -11 -10 ----------- Run | Scr Mat Matter Collected 450 | 330 120 Remotely . | . . Salvage Created 502 | 239 263 Parts 44 | 22 22 Haulers Intercepted . | . . Recyclers Shooed . | . . Parts Field Recycled . | . . Retrieved Matter . | . . Parts Self-Destructed . | . . Prevented . | . . Kills | -11 -10 ------- Run | Scr Mat Combat Hostiles Destroyed 8 | . 8 Guns 8 | . 8 Classes Destroyed 5 | 2 3 Builder 1 | . 1 Tunneler 7 | 7 . Recycler 1 | 1 . Swarmer 3 | . 3 Grunt 5 | . 5 Best Kill Streak 6 | 6 3 Combat Bots Only 3 | . 3 Max Kills in Single Turn 1 | 1 1 Gunslinging . | . . Exploded . | . . Melee . | . . Uniques/NPCs Destroyed . | . . Combat | -11 -10 -------- Run | Scr Mat Damage Taken 1187 | . 1187 Core 252 | . 252 Absorbed by Shields . | . . Core Remaining (%) 100 | 100 . Volleys Fired 71 | 15 56 Largest 2 | 2 2 Hottest 40 | 40 40 Shots Fired 108 | 30 78 Gun 108 | 30 78 Cannon . | . . Launcher . | . . Special . | . . Kinetic 108 | 30 78 Thermal . | . . Explosive . | . . Electromagnetic . | . . Robot Hit Streak 18 | 18 7 Robot Miss Streak 5 | 1 5 Penetration Max . | . . Secondary Targets 1 | . 1 Max Gunslinging Chain 1 | . 1 Shots Hit Robots 72 | 23 49 Core Hits 35 | 10 25 Critical Kills . | . . Critical Parts Destroyed . | . . Critical Strikes . | . . Melee Attacks . | . . Impact . | . . Slashing . | . . Piercing . | . . Sneak Attacks . | . . Combat Hostiles . | . . Follow-up Attacks . | . . Damage Inflicted 850 | 266 584 Guns 722 | 266 456 Cannons . | . . Explosions . | . . Melee . | . . Ramming 128 | . 128 Kinetic 722 | 266 456 Thermal . | . . Explosive . | . . Electromagnetic . | . . Impact . | . . Slashing . | . . Piercing . | . . Highest Corruption . | . . Average Corruption . | . . Corruption Purged . | . . Corruption Blocked . | . . Overload Shots . | . . Overflow Damage . | . . Projectiles . | . . Explosions . | . . Melee . | . . Knockbacks 1 | . 1 Impact 1 | . 1 Kinetic . | . . Secondary . | . . Self-Inflicted Damage 56 | . 56 Shots . | . . Rammed 18 | . 18 Targets Rammed 23 | . 23 Kicked 5 | . 5 Crushed . | . . Highest Temperature 20 | . 20 Average Temperature 7 | . 7 Received Heat Transfer 558 | . 558 Siege Activations . | . . Robots Corrupted . | . . Combat Hostiles . | . . Parts Fried . | . . Impact Corruptions . | . . Robots Melted . | . . Combat Hostiles . | . . Parts Melted . | . . Heat Transferred . | . . Parts Sabotaged . | . . Parts Stolen . | . . Parts Stripped . | . . Power Chain Reactions . | . . Missiles Intercepted . | . . Alert | -11 -10 ------- Run | Scr Mat Peak Influence 183 | 40 183 Initial 26 | . 26 Average 49 | 21 61 Maximum Alert Level . | . . Low Security (%) 100 | 100 100 Level 1 . | . . Level 2 . | . . Level 3 . | . . Level 4 . | . . Level 5 . | . . High Security . | . . Max Security . | . . Squads Dispatched 2 | . 2 Investigation . | . . Extermination . | . . Reinforcement 2 | . 2 Assault . | . . Garrison . | . . Intercept . | . . Searches Triggered . | . . Construction Impeded . | . . Haulers Reinforced . | . . Active Scanning Responses . | . . Cargo Convoy Interrupts . | . . Stealth | -11 -10 --------- Run | Scr Mat Distress Signals 1 | . 1 Communications Jammed . | . . Distress Signals . | . . Times Spotted 14 | . 14 Peak Tracking Total 5 | . 5 Tactical Retreats . | . . Traps | -11 -10 ------- Run | Scr Mat Traps Triggered . | . . Indirectly . | . . Trap Hack Attempts . | . . Triggered . | . . Disarmed . | . . Reprogrammed . | . . Reused . | . . Traps Extracted . | . . Installed . | . . Triggered . | . . Machines | -11 -10 ---------- Run | Scr Mat Machines Disabled . | . . Max in Single Turn . | . . Machines Sabotaged . | . . Overloaded Fab Kills . | . . Hacking | -11 -10 --------- Run | Scr Mat Machines Accessed 2 | . 2 Terminals 2 | . 2 Fabricators . | . . Repair Stations . | . . Recycling Units . | . . Scanalyzers . | . . Garrison Access . | . . Total Hacks 9 | . 9 Successful 3 | . 3 Failed 6 | . 6 Catastrophic 1 | . 1 Database Lockouts . | . . Manual 6 | . 6 Terminals 9 | . 9 Fabricators . | . . Repair Stations . | . . Recycling Units . | . . Scanalyzers . | . . Garrison Access . | . . Terminal Hacks 3 | . 3 Part Schematic 1 | . 1 Prototype ID Bank 1 | . 1 Locate Traps 1 | . 1 Fabricator Hacks . | . . Repair Station Hacks . | . . Recycling Unit Hacks . | . . Scanalyzer . | . . Garrison Access Hacks . | . . Unauthorized Hacks . | . . Terminals . | . . Fabricators . | . . Repair Stations . | . . Recycling Units . | . . Scanalyzers . | . . Garrison Access . | . . Data Cores Recovered . | . . Used . | . . Hacking Detections 2 | . 2 Full Trace Events . | . . Feedback Events . | . . Feedback Blocked . | . . Robot Schematics Acquired . | . . Robots Built . | . . Authchips . | . . Time . | . . Total Robot Build Rating . | . . Part Schematics Acquired 1 | . 1 Parts Built . | . . Authchips . | . . Time . | . . Total Part Build Rating . | . . Parts Repaired . | . . Time . | . . Parts Recycled . | . . Recycled Matter . | . . Retrieved Matter . | . . Retrieved Components . | . . Parts Scanalyzed . | . . Part Schematics Acquired . | . . Parts Damaged . | . . Bothacking | -11 -10 ------------ Run | Scr Mat Used RIF Installer . | . . Robots Hacked . | . . Non-combat . | . . Combat . | . . Robot Hacks Applied . | . . Relay Couplers Released . | . . Fabnet Peak Effective % . | . . Robots Rewired . | . . Allies Hacked . | . . Hacks Repelled . | . . Allies | -11 -10 -------- Run | Scr Mat Total Allies . | . . Largest Group . | . . Highest-Rated Group . | . . Highest-Rated Ally . | . . Total Orders . | . . Ally Attacks . | . . Total Damage . | . . Kills . | . . Allies Corrupted . | . . Allies Melted . | . . Intel | -11 -10 ------- Run | Scr Mat Robot Analysis Total . | . . Derelict Logs Recovered . | . . Drone Launches . | . . Drone Recoveries . | . . Exploration | -11 -10 ------------- Run | Scr Mat Turns Passed 786 | 233 553 Spaces Moved 263 | 103 160 Core 9 | 1 8 Treads . | . . Legs . | . . Wheels 254 | 102 152 Hover . | . . Flight . | . . Fastest Speed 50 | 50 50 Average Speed 148 | 99 179 Slowest Speed 200 | 100 200 Overloaded Moves . | . . Propulsion Burnouts . | . . Robots Hopped . | . . Cave-ins Triggered . | . . Exploration Rate (%) 15 | 4 27 Regions Visited 1 Branch Regions . Pre-discovered Areas . | . . Known Exits Taken . | . . Unknown Exits Taken 1 | 1 . Scrap Searched . | . . Spaces Dug . | . . Terrain Destroyed . | . . Melee . | . . Projectile . | . . AOE . | . . Terrain Rammed . | . . Walls Destroyed . | . . Machines Disabled . | . . Actions | -11 -10 --------- Run | Scr Mat Total 521 | 207 314 Wait 119 | 64 55 Move 262 | 102 160 Hop . | . . Pick Up 23 | 14 9 Fast Attach 6 | 6 . Attach 7 | 1 6 Detach . | . . Swap 4 | . 4 Drop 6 | 5 1 Fire 71 | 15 56 Melee . | . . Ram 18 | . 18 Kick 5 | . 5 Crush . | . . Escape Stasis . | . . Rewire . | . . Trap . | . . Miscellaneous . | . . Route ------- -11/Scrapyard -10/Materials (discovered 1 exit: [*Mat]) History --------- Turn | Location | Event 21 | -11/Scrapyard | Discovered new exit (range 14) 234 | -11/Scrapyard | Entered Materials 304 | -10/Materials | Build established: Mutant 705 | -10/Materials | Core integrity fell below 50% 733 | -10/Materials | Discovered new exit (range 16) 773 | -10/Materials | Core integrity fell below 20% 781 | -10/Materials | Lost 10 parts (2p5n1u2w) 783 | -10/Materials | Released all parts (2) 787 | -10/Materials | Destroyed by G-34 Mercenary with Small Laser Last Messages --------------- 00743_ R-06 Scavenger collects Terrain Scan Processor. 00744_ M-13 Machinist repairs Heat Sink. 00746_ M-13 Machinist repairs Ion Engine. 00747_ R-06 Scavenger collects Lgt. Ion Engine. 00750_ Wheel destroyed. 00752_ Kicked G-34 Mercenary. 00757_ M-13 Machinist repairs Heat Sink. 00758_ Kicked G-34 Mercenary. 00763_ M-13 Machinist repairs G-34 Mercenary. 00764_ Kicked G-34 Mercenary. 00769_ M-13 Machinist repairs Ion Engine. 00770_ Kicked G-34 Mercenary. 00773_ U-05 Engineer builds a Door. 00775_ M-13 Machinist repairs G-34 Mercenary. 00776_ Kicked G-34 Mercenary. 00781_ M-13 Machinist repairs G-34 Mercenary. 00783_ Released Huge Storage Unit. 00783_ Released Aluminum Leg. 00783_ Acquired 17 matter. 00786_ R-06 Scavenger collects Lrg. Matter Pod. Map ----- +----------------------------------------------------+ | ????????????????????????????????????????? | | ??????????????? ???????????????????? | | ??????????? ? ???????????????????? | | ????????? % ^ ???????????????????? | | ??????? / T??????????????????? | | ???????? ! / "??????????????????? | | ????????? ??????????????????? | | ?????????# ??????????????????? | | ????? ??# #??????????????????# | | ??????" ?# #??????????????????+ | | ??????? # #??????????????????# | | ???????? + o #??????????????????# | | ?????????# #????############### | | ???????????# #????# # | | ???????????# ###### # | | ???????????# r #% + T | | ???????????# =m! %+%% # | | ???????????# |!* #!* # | | ??######???#/##g !###### ## ## | | ??# ????# #????#########+##### #? | | ??# ??# #????????????#^#???# #? | | ??# # #????????????# #???# #? | | ??# + #????????????# #???# #? | | ???? """ """ # #????????????# #???# #? | | ????????" ""??# #????????????# #???# #? | | ????????" ????# @ #??????####### #???# #? | | ??????????????# +??????# # #???# #? | | ??????????????# #??????# # #???# #? | | ??????????????# #??????# """ # #???# #? | | ??????????????# #??????# """ # #####=## | | ??????????????# #??????# """ # # | | ??????????????+ #??????# """ + # | | ??????????????# #??????# # # | | ??????????????# < #??????# ###### # | | ??????????????# #??????# " #????# # | | ??????????????#####??????# T #????# # | | ?????????????????????????# " #????# + | | ?????????????????????????# #????# # | | ?????????????????????????#######????# # | | ????????????????????????????????????# # | | ????????????????????????????????????##### | | ????????????????????????????????????????? | | ????????????????????????????????????????? | | ????????????????????????????????????????? | | ????????????????????????????????????????? | | | | | | | | | | | +----------------------------------------------------+ Best States ------------- Heat Dissipation 25 Energy Generation 10 Energy Capacity 250 Matter Stores 300 Matter Capacity 300 Sight Range 16 Terrain Scan Density 10 Evasion (%) 40 Recoil Reduction 2 Item Schematics ----------------- Med. Storage Unit | -10/Materials | Hacked Robot Schematics ------------------ None Fabricated ------------ Nothing Alien Tech Used ----------------- None Achievements -------------- None Challenges ------------ None Game ------ Seed FrostSingularityFlail Manual? 0 Play Time 00:18:52 Cumulative 349.7 hours Start 2022.12.21 @ 15:49:23 End 2022.12.21 @ 16:13:37 Sessions 1 Manual Loads 0 Difficulty Rogue Special Mode None Game No. 324 Rogue 324 Adventurer 0 Explorer 0 Win Type - Total 5 Types 4/1/0/0/0/0/0/0/0 Lore% 68 Gallery% 83 Achievement% 70 Wizard Run 0 Options --------- ASCII 0 Keyboard 0 Movement Numpad Keybinds 0 Fullscreen 2 Font 24/Terminus Map View 76x50 Tactical HUD 1 Map Filters NONE Filters NONE Steam 1 RUN: b339d308-6bef-43f9-99d2-4680c2e721c5